bitfinex/quotes_BTCUSD_20241018
["timestamp","ask_amount","ask_price","bid_price","bid_amount"]
[1729239598440,0.14962151,67947.0,67946.0,0.34720262]
[1729239598684,0.14962151,67947.0,67946.0,0.32413415]
[1729239598920,0.14962151,67947.0,67946.0,0.34720312]
[1729239601491,0.14962151,67947.0,67946.0,0.33517832]
[1729239601712,0.14962151,67947.0,67946.0,0.34720417]
[1729239601953,0.083554,67947.0,67946.0,0.34720417]
[1729239603331,0.14962151,67947.0,67946.0,0.34720417]
[1729239606743,0.083554,67947.0,67946.0,0.34720417]
[1729239606979,0.14962151,67947.0,67946.0,0.34720417]
[1729239608415,0.083554,67947.0,67946.0,0.34720417]
[1729239608672,0.04568382,67947.0,67946.0,0.34720417]
[1729239608916,0.001654,67947.0,67946.0,0.34720417]
[1729239609169,0.001654,67947.0,67946.0,0.39321743]
[1729239609641,0.001654,67947.0,67946.0,0.36520689]
[1729239610116,0.001654,67947.0,67946.0,0.37920689]
[1729239610350,0.001654,67947.0,67946.0,0.36520689]
[1729239610616,0.001654,67947.0,67946.0,0.38120689]
[1729239611089,0.001654,67947.0,67946.0,0.39320689]
[1729239611571,0.001654,67947.0,67946.0,0.37920689]
[1729239611798,0.001694,67947.0,67946.0,0.37920689]
[1729239612060,0.001694,67947.0,67946.0,0.50820689]
[1729239612757,0.001694,67947.0,67946.0,0.49420689]
[1729239612983,0.001694,67947.0,67946.0,0.48020689]
[1729239613217,0.001694,67947.0,67946.0,0.49420689]
[1729239613685,0.001694,67947.0,67946.0,0.49620689]
[1729239613912,0.001694,67947.0,67946.0,0.49419332]
[1729239614413,0.001694,67947.0,67946.0,0.50819332]
[1729239614882,0.001694,67947.0,67946.0,0.49419332]
[1729239615330,0.001694,67947.0,67946.0,0.50819332]
[1729239617443,0.001694,67947.0,67946.0,0.46218006]
[1729239617688,0.001694,67947.0,67946.0,0.50807347]
[1729239618411,0.001694,67947.0,67946.0,0.46215192]
[1729239618629,0.001694,67947.0,67946.0,0.50807308]
[1729239618849,0.001694,67947.0,67946.0,0.46215192]
[1729239622667,0.001694,67947.0,67946.0,0.46804092]
[1729239624458,0.00052224,67947.0,67946.0,0.46804092]
[1729239627468,0.00052224,67947.0,67946.0,0.35303715]
[1729239627469,0.08252224,67947.0,67946.0,0.35303715]
[1729239628876,0.00052224,67947.0,67946.0,0.35303715]
[1729239629598,0.00052224,67947.0,67946.0,0.35304023]
[1729239637629,0.00052224,67947.0,67946.0,0.35307281]
[1729239637844,0.00052224,67947.0,67946.0,0.35307274]
[1729239638984,0.00052224,67947.0,67946.0,0.35307795]
[1729239639431,0.00052224,67947.0,67946.0,0.35307808]
[1729239640314,0.00052224,67947.0,67946.0,0.39902786]
[1729239641863,0.00052224,67947.0,67946.0,0.38798851]
[1729239642085,0.00052224,67947.0,67946.0,0.39902829]
[1729239642989,0.00052224,67947.0,67946.0,0.39985629]
[1729239645322,0.08032224,67947.0,67946.0,0.39985629]
[1729239645551,0.17462224,67947.0,67946.0,0.35390651]
[1729239645794,0.17462224,67947.0,67946.0,0.34189093]
[1729239646029,0.17462224,67947.0,67946.0,0.35391669]
[1729239646225,0.17462224,67947.0,67946.0,0.33991669]
[1729239646731,0.17462224,67947.0,67946.0,0.35391669]
[1729239646956,0.17462224,67947.0,67946.0,0.33991669]
[1729239647181,0.17462224,67947.0,67946.0,0.32591669]
[1729239647407,0.17462224,67947.0,67946.0,0.33991669]
[1729239647646,0.17462224,67947.0,67946.0,0.32591669]
[1729239648099,0.17462224,67947.0,67946.0,0.33991669]
[1729239648546,0.17462224,67947.0,67946.0,0.35391669]
[1729239649020,0.17462224,67947.0,67946.0,0.33991669]
[1729239649250,0.17462224,67947.0,67946.0,0.35391669]
[1729239649976,0.17462224,67947.0,67946.0,0.35390726]
[1729239651622,0.17462224,67947.0,67946.0,0.05188411]
[1729239651623,0.32179524,67947.0,67946.0,0.05188411]
[1729239652089,0.38771051,67947.0,67946.0,0.028828]
[1729239652317,0.51195274,67947.0,67946.0,0.028828]
[1729239652830,0.51195274,67947.0,67946.0,0.014828]
[1729239652831,0.56691811,67947.0,67946.0,0.014828]
[1729239653057,0.52195274,67947.0,67946.0,0.014828]
[1729239653278,0.52195274,67947.0,67946.0,0.000828]
[1729239653723,0.52195274,67947.0,67946.0,0.028828]
[1729239653918,0.52195274,67947.0,67946.0,0.014828]
[1729239654415,0.52195274,67947.0,67946.0,0.015828]
[1729239654861,0.52195274,67947.0,67946.0,0.001828]
[1729239655297,0.52195274,67947.0,67946.0,0.003828]
[1729239655769,0.63166015,67947.0,67946.0,0.000828]
[1729239656214,0.63366015,67947.0,67946.0,0.000828]
[1729239656710,0.52195274,67947.0,67946.0,0.000828]
[1729239657155,0.52195274,67947.0,67946.0,0.001828]
[1729239657373,0.52195274,67947.0,67946.0,0.000828]
[1729239657610,0.60964571,67947.0,67946.0,0.000828]
[1729239657830,0.60964571,67947.0,67946.0,0.001828]
[1729239658067,0.61064571,67947.0,67946.0,0.001828]
[1729239658734,0.52295274,67947.0,67946.0,0.001828]
[1729239659685,0.42646672,67947.0,67946.0,0.001828]
[1729239661030,0.42647305,67947.0,67946.0,0.001828]
[1729239662676,0.36071552,67947.0,67946.0,0.001828]
[1729239664537,0.40453119,67947.0,67946.0,0.001828]
[1729239667075,0.36071552,67947.0,67946.0,0.001828]
[1729239671424,0.22849524,67947.0,67946.0,0.001828]
[1729239672311,0.08032224,67947.0,67946.0,0.001828]
[1729239672541,0.00052224,67947.0,67946.0,0.149003]
[1729239672774,0.00052224,67947.0,67946.0,0.30796215]
[1729239673012,0.00052224,67947.0,67946.0,0.32188841]
[1729239673254,0.00052224,67947.0,67946.0,0.50484462]
[1729239673481,0.00052224,67947.0,67946.0,0.58104462]
[1729239673710,0.00052224,67947.0,67946.0,0.59205048]
[1729239673940,0.00052224,67947.0,67946.0,0.60605048]
[1729239674160,0.00052224,67947.0,67946.0,0.59205048]
[1729239674622,0.00052224,67947.0,67946.0,0.74479177]
[1729239674845,0.00052224,67947.0,67946.0,0.73079177]
[1729239675083,0.00052224,67947.0,67946.0,0.60205048]
[1729239675330,0.00052224,67947.0,67946.0,0.61605048]
[1729239676049,0.00052224,67947.0,67946.0,0.60205048]
[1729239676271,0.00052224,67947.0,67946.0,0.61605048]
[1729239676508,0.00052224,67947.0,67946.0,0.63005048]
[1729239676741,0.00052224,67947.0,67946.0,0.61605048]
[1729239676983,0.00052224,67947.0,67946.0,0.60504462]
[1729239677212,0.00052224,67947.0,67946.0,0.64104838]
[1729239677682,0.00052224,67947.0,67946.0,0.62704838]
[1729239678182,0.00052224,67947.0,67946.0,0.64104838]
[1729239678856,0.00052224,67947.0,67946.0,0.62704838]
[1729239679081,0.00052224,67947.0,67946.0,0.64104838]
[1729239680445,0.00052224,67947.0,67946.0,0.6300465]
[1729239680901,0.00052224,67947.0,67946.0,0.61806403]
[1729239681130,0.00052224,67947.0,67946.0,0.63002424]
[1729239683128,0.00052224,67947.0,67946.0,0.46292424]
[1729239683587,0.00052224,67947.0,67946.0,0.46881324]
[1729239685161,0.00052224,67947.0,67946.0,0.46880562]
[1729239685376,0.00052224,67947.0,67946.0,0.44585115]
[1729239685598,0.00052224,67947.0,67946.0,0.57255417]
[1729239685820,0.00052224,67947.0,67946.0,0.44781288]
[1729239686044,0.00052224,67947.0,67946.0,0.56255417]
[1729239687466,0.00052224,67947.0,67946.0,0.34281288]
[1729239687692,0.08252224,67947.0,67946.0,0.33085115]
[1729239688146,0.32399524,67947.0,67946.0,0.028828]
[1729239688372,0.35191552,67947.0,67946.0,0.028828]
[1729239688615,0.00492028,67946.0,67945.0,0.00087119]
[1729239688848,0.34679528,67946.0,67945.0,0.00087119]
[1729239689074,0.5273003,67946.0,67945.0,0.00087119]
[1729239689297,0.50853007,67946.0,67945.0,0.00087119]
[1729239689518,0.34679528,67946.0,67945.0,0.00087119]
[1729239689972,0.6751531,67946.0,67945.0,0.00087119]
[1729239690193,0.51342864,67946.0,67945.0,0.01087119]
[1729239690634,0.57914216,67946.0,67945.0,0.01087119]
[1729239691555,0.57914216,67946.0,67945.0,0.02187119]
[1729239691782,0.58014216,67946.0,67945.0,0.02187119]
[1729239693580,0.3915975,67946.0,67945.0,0.02187119]
[1729239693791,0.51442864,67946.0,67945.0,0.02187119]
[1729239698154,0.55823086,67946.0,67945.0,0.02187119]
[1729239698371,0.51442864,67946.0,67945.0,0.02187119]
[1729239700626,0.51442864,67946.0,67945.0,0.02269919]
[1729239704197,0.147198,67936.0,67931.0,0.21942817]
[1729239704646,0.147198,67936.0,67931.0,0.147208]
[1729239705126,0.147199,67935.0,67929.0,0.441636]
[1729239705600,0.147199,67935.0,67931.0,0.012]
[1729239705819,0.147199,67935.0,67931.0,0.026]
[1729239706270,0.147199,67935.0,67931.0,0.012]
[1729239706526,0.148199,67935.0,67931.0,0.012]
[1729239706955,0.147199,67935.0,67931.0,0.012]
[1729239707407,0.147199,67935.0,67930.0,0.147209]
[1729239707625,0.148199,67935.0,67930.0,0.147209]
[1729239707887,0.001,67935.0,67930.0,0.147209]
[1729239708130,0.001,67935.0,67931.0,0.294416]
[1729239708354,0.001,67935.0,67932.0,0.441618]
[1729239708576,0.002,67935.0,67933.0,0.147201]
[1729239708805,0.001,67935.0,67933.0,0.147201]
[1729239709037,0.001,67935.0,67931.0,0.147207]
[1729239709268,0.002,67935.0,67931.0,0.294416]
[1729239709500,0.147196,67937.0,67932.0,0.147204]
[1729239709938,0.001,67935.0,67932.0,0.147204]
[1729239710164,0.147196,67937.0,67932.0,0.147204]
[1729239710925,0.001,67935.0,67932.0,0.002]
[1729239711139,0.001,67935.0,67934.0,0.147201]
[1729239711813,0.294373,67941.0,67933.0,0.294407]
[1729239711814,0.147187,67941.0,67933.0,0.294407]
[1729239712025,0.51378817,67944.0,67936.0,0.147197]
[1729239712239,0.001,67937.0,67936.0,0.147197]
[1729239712898,0.147184,67942.0,67937.0,0.147193]
[1729239713117,0.21942817,67944.0,67937.0,0.147193]
[1729239713336,0.147186,67941.0,67937.0,0.147193]
[1729239713999,0.294364,67943.0,67934.0,0.294401]
[1729239714253,0.147189,67940.0,67937.0,0.005]
[1729239714489,0.001,67941.0,67937.0,0.005]
[1729239714685,0.001,67941.0,67938.0,0.147193]
[1729239714957,0.148184,67942.0,67938.0,0.147193]
[1729239715187,0.001,67941.0,67938.0,0.147193]
[1729239715429,0.001,67941.0,67937.0,0.002]
[1729239715681,0.148187,67941.0,67937.0,0.149194]
[1729239715901,0.148187,67941.0,67937.0,0.152194]
[1729239716113,0.148187,67941.0,67938.0,0.002]
[1729239716334,0.149187,67941.0,67938.0,0.007]
[1729239716546,0.149187,67941.0,67938.0,0.002]
[1729239716788,0.148187,67941.0,67938.0,0.002]
[1729239717015,0.147188,67940.0,67938.0,0.002]
[1729239717235,0.002,67941.0,67938.0,0.002]
[1729239717453,0.147188,67940.0,67939.0,0.01201574]
[1729239718171,0.147191,67939.0,67937.0,0.002]
[1729239718408,0.147191,67939.0,67938.0,0.01202317]
[1729239718634,0.147191,67939.0,67938.0,0.01702317]
[1729239718853,0.147191,67939.0,67938.0,0.01202317]
[1729239720455,0.148191,67939.0,67938.0,0.01702317]
[1729239720665,0.148191,67939.0,67938.0,0.01702358]
[1729239720881,0.149191,67939.0,67938.0,0.01902358]
[1729239722861,0.149191,67939.0,67938.0,0.01902464]
[1729239723371,0.319491,67939.0,67938.0,0.01902464]
[1729239723588,0.319491,67939.0,67938.0,0.007]
[1729239724530,0.43327834,67939.0,67938.0,0.005]
[1729239724750,0.43427834,67939.0,67938.0,0.002]
[1729239724960,0.43327834,67939.0,67938.0,0.002]
[1729239725181,0.43427834,67939.0,67938.0,0.007]
[1729239725400,0.147199,67935.0,67934.0,0.01104545]
[1729239725622,0.294393,67937.0,67934.0,0.01202439]
[1729239725892,0.147203,67934.0,67930.0,0.14721]
[1729239726116,0.147198,67936.0,67932.0,0.02307062]
[1729239726345,0.1713,67939.0,67934.0,0.147201]
[1729239726572,0.1713,67939.0,67931.0,0.295242]
[1729239726573,0.464682,67939.0,67935.0,0.02307062]
[1729239726787,0.0793,67939.0,67936.0,0.02307012]
[1729239727005,0.147193,67938.0,67937.0,0.01202538]
[1729239728755,0.243993,67938.0,67937.0,0.01702538]
[1729239728966,0.244993,67938.0,67937.0,0.01902538]
[1729239731281,0.244993,67938.0,67937.0,0.01902467]
[1729239731529,0.31084025,67938.0,67937.0,0.01902467]
[1729239731757,0.31084025,67938.0,67937.0,0.01902476]
[1729239732629,0.40734807,67938.0,67937.0,0.01902476]
[1729239734272,0.16435507,67938.0,67937.0,0.01902476]
[1729239734519,0.27458433,67938.0,67937.0,0.03006983]
[1729239735231,0.27458433,67938.0,67937.0,0.03006971]
[1729239736651,0.42177733,67938.0,67937.0,0.03006971]
[1729239738054,0.42177733,67938.0,67937.0,0.03089771]
[1729239738559,0.31171055,67938.0,67937.0,0.03089771]
[1729239738795,0.31171055,67938.0,67937.0,0.03089773]
[1729239739046,0.31171055,67938.0,67937.0,0.007828]
[1729239739264,0.31171169,67938.0,67937.0,0.03089769]
[1729239739714,0.42177954,67938.0,67937.0,0.03089769]
[1729239739938,0.31171169,67938.0,67937.0,0.03089769]
[1729239740152,0.31171169,67938.0,67937.0,0.01985282]
[1729239740385,0.42177981,67938.0,67937.0,0.03089765]
[1729239741160,0.31171169,67938.0,67937.0,0.03089765]
[1729239741622,0.42177756,67938.0,67937.0,0.03089765]
[1729239742070,0.31171169,67938.0,67937.0,0.01985282]
[1729239742993,0.16451869,67938.0,67937.0,0.01985282]
[1729239743241,0.42177762,67938.0,67937.0,0.03089777]
[1729239743490,0.31171169,67938.0,67937.0,0.03089812]
[1729239743718,0.31171169,67938.0,67937.0,0.01985302]
[1729239743939,0.31170966,67938.0,67937.0,0.01985302]
[1729239747062,0.31170966,67938.0,67937.0,0.01985365]
[1729239747252,0.16451666,67938.0,67937.0,0.03089942]
[1729239747722,0.42173511,67938.0,67937.0,0.03089942]
[1729239748583,0.31170966,67938.0,67937.0,0.03089942]
[1729239748846,0.42174243,67938.0,67937.0,0.03089942]
[1729239749060,0.31170966,67938.0,67937.0,0.03089942]
[1729239750181,0.42176457,67938.0,67937.0,0.03089942]
[1729239751489,0.27457157,67938.0,67937.0,0.03089942]
[1729239753298,0.42176457,67938.0,67937.0,0.03089942]
[1729239753530,0.42178321,67938.0,67937.0,0.03089942]
[1729239754035,0.16452224,67938.0,67937.0,0.44184091]
[1729239754258,0.16452224,67938.0,67937.0,0.41876949]
[1729239754259,0.002,67938.0,67937.0,0.41876949]
[1729239754940,0.001,67938.0,67937.0,0.41376949]
[1729239755181,0.0456859,67945.0,67941.0,0.389473]
[1729239755410,0.001656,67945.0,67944.0,0.26196734]
[1729239755623,0.001656,67945.0,67944.0,0.41092649]
[1729239755846,0.001656,67945.0,67944.0,0.42082983]
[1729239756563,0.002656,67945.0,67944.0,0.42082983]
[1729239757884,0.002656,67945.0,67944.0,0.47251053]
[1729239758102,0.002656,67945.0,67944.0,0.49557929]
[1729239758323,0.002656,67945.0,67944.0,0.50957929]
[1729239758505,0.003656,67945.0,67944.0,0.52357929]
[1729239759413,0.003656,67945.0,67944.0,0.52356023]
[1729239759634,0.003656,67945.0,67944.0,0.52354276]
[1729239760814,0.003656,67945.0,67944.0,0.62564276]
[1729239761032,0.003656,67945.0,67944.0,0.70144276]
[1729239765400,0.003656,67945.0,67944.0,0.62564276]
[1729239765880,0.003656,67945.0,67944.0,0.35707472]
[1729239766096,0.003656,67945.0,67944.0,0.34604901]
[1729239767430,0.003656,67945.0,67944.0,0.33404249]
[1729239767909,0.003656,67945.0,67944.0,0.34600952]
[1729239771222,0.003656,67945.0,67944.0,0.33404249]
[1729239771223,0.082956,67945.0,67944.0,0.33404249]
[1729239771491,0.082956,67945.0,67944.0,0.33993349]
[1729239772401,0.082956,67945.0,67944.0,0.04379434]
[1729239772619,0.082956,67945.0,67944.0,0.03790334]
[1729239773947,0.081956,67945.0,67944.0,0.17108334]
[1729239774428,0.080956,67945.0,67944.0,0.15708334]
[1729239774656,0.081956,67945.0,67944.0,0.16808334]
[1729239774872,0.082956,67945.0,67944.0,0.17908334]
[1729239776871,0.082956,67945.0,67944.0,0.03190334]
[1729239779149,0.082956,67945.0,67944.0,0.17908334]
[1729239780209,0.082956,67945.0,67944.0,0.03190334]
[1729239784697,0.082956,67945.0,67944.0,0.03273134]
[1729239784698,0.29923564,67945.0,67944.0,0.03273134]
[1729239784919,0.325533,67945.0,67944.0,0.022828]
[1729239786225,0.178356,67945.0,67944.0,0.022828]
[1729239786625,0.178356,67945.0,67944.0,0.17728253]
[1729239787364,0.178356,67945.0,67944.0,0.03010253]
[1729239789942,0.082956,67945.0,67944.0,0.17728253]
[1729239790160,0.082956,67945.0,67944.0,0.03010253]
[1729239790381,0.082956,67945.0,67944.0,0.04209707]
[1729239792563,0.082956,67945.0,67944.0,0.18927707]
[1729239792778,0.082956,67945.0,67944.0,0.04209707]
[1729239793003,0.082956,67945.0,67944.0,0.18927707]
[1729239793242,0.003656,67945.0,67944.0,0.18200254]
[1729239793467,0.003656,67945.0,67944.0,0.34925317]
[1729239793903,0.003656,67945.0,67944.0,0.46761457]
[1729239794347,0.003656,67945.0,67944.0,0.35289043]
[1729239802558,0.003656,67945.0,67944.0,0.35293545]
[1729239804733,0.003656,67945.0,67944.0,0.34193545]
[1729239804734,0.002656,67945.0,67944.0,0.34193545]
[1729239804934,0.003656,67945.0,67944.0,0.35293545]
[1729239805362,0.002656,67945.0,67944.0,0.34193545]
[1729239806038,0.001656,67945.0,67944.0,0.33093545]
[1729239806257,0.002656,67945.0,67944.0,0.35593545]
[1729239806681,0.002656,67945.0,67944.0,0.34193217]
[1729239807115,0.002656,67945.0,67944.0,0.35593217]
[1729239807576,0.001656,67945.0,67944.0,0.34493217]
[1729239807818,0.001656,67945.0,67944.0,0.35893217]
[1729239808036,0.001656,67945.0,67944.0,0.34493217]
[1729239808499,0.001656,67945.0,67944.0,0.35893217]
[1729239810844,0.001656,67945.0,67944.0,0.35893097]
[1729239815158,0.001656,67945.0,67944.0,0.34789297]
[1729239815380,0.001656,67945.0,67944.0,0.35892652]
[1729239815593,0.001656,67945.0,67944.0,0.35892749]
[1729239819620,0.001656,67945.0,67944.0,0.35893926]
[1729239822609,0.001656,67945.0,67944.0,0.06280011]
[1729239822610,0.317033,67945.0,67944.0,0.06280011]
[1729239822830,0.317033,67945.0,67944.0,0.05915756]
[1729239822831,0.56741804,67945.0,67944.0,0.05915756]
[1729239823093,0.47941924,67945.0,67944.0,0.0408486]
[1729239823306,0.58938506,67945.0,67944.0,0.028828]
[1729239823514,0.47941924,67945.0,67944.0,0.028828]
[1729239824137,0.47941924,67945.0,67944.0,0.014828]
[1729239825037,0.47941924,67945.0,67944.0,0.028828]
[1729239825250,0.58936599,67945.0,67944.0,0.014828]
[1729239825462,0.58936599,67945.0,67944.0,0.000828]
[1729239825685,0.58936599,67945.0,67944.0,0.028828]
[1729239827032,0.5892968,67945.0,67944.0,0.028828]
[1729239828371,0.47936063,67945.0,67944.0,0.028828]
[1729239829222,0.46556063,67945.0,67944.0,0.028828]
[1729239830703,0.46721663,67945.0,67944.0,0.028828]
[1729239834303,0.57707693,67945.0,67944.0,0.028828]
[1729239837190,0.57690314,67945.0,67944.0,0.028828]
[1729239837946,0.46706778,67945.0,67944.0,0.028828]
[1729239843316,0.55490635,67945.0,67944.0,0.028828]
[1729239843733,0.5548009,67945.0,67944.0,0.028828]
[1729239844767,0.46696233,67945.0,67944.0,0.028828]
[1729239845159,0.3706659,67945.0,67944.0,0.028828]
[1729239845621,0.30478355,67945.0,67944.0,0.028828]
[1729239846281,0.3706659,67945.0,67944.0,0.028828]
[1729239848177,0.30478355,67945.0,67944.0,0.028828]
[1729239849325,0.3706659,67945.0,67944.0,0.028828]
[1729239849526,0.30478355,67945.0,67944.0,0.028828]
[1729239849891,0.3706659,67945.0,67944.0,0.028828]
[1729239853170,0.30478355,67945.0,67944.0,0.028828]
[1729239853524,0.4669602,67945.0,67944.0,0.028828]
[1729239853959,0.30478355,67945.0,67944.0,0.028828]
[1729239854723,0.46696867,67945.0,67944.0,0.028828]
[1729239855375,0.30478355,67945.0,67944.0,0.028828]
[1729239855751,0.46697982,67945.0,67944.0,0.028828]
[1729239856158,0.55482296,67945.0,67944.0,0.028828]
[1729239856560,0.46697982,67945.0,67944.0,0.028828]
[1729239857141,0.46700299,67945.0,67944.0,0.040853]
[1729239857553,0.46700703,67945.0,67944.0,0.040853]
[1729239857758,0.55489954,67945.0,67944.0,0.028828]
[1729239857966,0.69159681,67945.0,67944.0,0.028828]
[1729239858172,0.60965145,67945.0,67944.0,0.028828]
[1729239858389,0.60965145,67945.0,67937.0,0.000828]
[1729239858390,0.00492028,67942.0,67937.0,0.000828]
[1729239858589,0.50863418,67938.0,67937.0,0.000828]
[1729239858794,0.50863418,67938.0,67937.0,0.01285269]
[1729239859011,0.44271714,67938.0,67937.0,0.01285269]
[1729239859252,0.6049438,67938.0,67937.0,0.000828]
[1729239859498,0.44271714,67938.0,67937.0,0.000828]
[1729239860305,0.60495138,67938.0,67937.0,0.000828]
[1729239861008,0.60595138,67938.0,67937.0,0.014828]
[1729239861240,0.60595138,67938.0,67937.0,0.023828]
[1729239861241,0.60695138,67938.0,67937.0,0.023828]
[1729239861474,0.69484077,67938.0,67937.0,0.023828]
[1729239861683,0.60695138,67938.0,67937.0,0.023828]
[1729239862111,0.69484077,67938.0,67937.0,0.023828]
[1729239864177,0.69484352,67938.0,67937.0,0.023828]
[1729239865221,0.60693934,67938.0,67937.0,0.023828]
[1729239865415,0.75589849,67938.0,67937.0,0.023828]
[1729239866268,0.71680411,67938.0,67937.0,0.023828]
[1729239867305,0.71688885,67938.0,67937.0,0.023828]
[1729239867942,0.64485962,67938.0,67937.0,0.023828]
[1729239868153,0.64685962,67938.0,67937.0,0.023828]
[1729239868364,0.77869734,67938.0,67937.0,0.023828]
[1729239868578,0.6924778,67938.0,67937.0,0.023828]
[1729239869220,0.6914778,67938.0,67937.0,0.014828]
[1729239869429,0.82240576,67938.0,67937.0,0.000828]
[1729239869636,0.77678758,67938.0,67937.0,0.000828]
[1729239869857,0.64585962,67938.0,67937.0,0.008828]
[1729239870066,0.64685962,67938.0,67937.0,0.015828]
[1729239871117,0.64485962,67938.0,67937.0,0.015828]
[1729239871336,0.79381877,67938.0,67937.0,0.015828]
[1729239873164,0.64485962,67938.0,67937.0,0.015828]
[1729239873577,0.00492028,67934.0,67931.0,0.000828]
[1729239873825,0.43743014,67932.0,67931.0,0.000828]
[1729239874036,0.59962817,67932.0,67931.0,0.000828]
[1729239875636,0.60062817,67932.0,67931.0,0.009828]
[1729239876592,0.60162817,67932.0,67931.0,0.009828]
[1729239877476,0.71142422,67932.0,67931.0,0.009828]
[1729239877692,0.59670008,67932.0,67931.0,0.009828]
[1729239881402,0.48690403,67932.0,67931.0,0.009828]
[1729239881859,0.06786475,67932.0,67931.0,0.009828]
[1729239882132,0.002,67932.0,67931.0,0.009828]
[1729239882332,0.002,67932.0,67931.0,0.01723328]
[1729239882537,0.002,67932.0,67931.0,0.16444128]
[1729239882754,0.002,67932.0,67931.0,0.31340043]
[1729239882957,0.002,67932.0,67931.0,0.50639863]
[1729239883794,0.0439149,67937.0,67933.0,0.147201]
[1729239884012,0.0439149,67937.0,67935.0,0.147199]
[1729239884447,0.0439149,67939.0,67935.0,0.294398]
[1729239884657,0.08782981,67942.0,67938.0,0.11472414]
[1729239884658,0.147187,67941.0,67938.0,0.11472414]
[1729239884877,0.21942817,67942.0,67939.0,0.01199991]
[1729239885102,0.0439149,67944.0,67939.0,0.01199991]
[1729239885103,0.147181,67944.0,67941.0,0.11472414]
[1729239885328,0.0455709,67945.0,67944.0,0.14718]
[1729239885329,0.001656,67945.0,67944.0,0.14718]
[1729239885541,0.001656,67945.0,67944.0,0.4228632]
[1729239885819,0.001656,67945.0,67944.0,0.43388424]
[1729239886030,0.001656,67945.0,67944.0,0.46287225]
[1729239886456,0.001656,67945.0,67944.0,0.44367295]
[1729239886855,0.001656,67945.0,67944.0,0.47687225]
[1729239887073,0.001656,67945.0,67944.0,0.47167295]
[1729239887291,0.001656,67945.0,67944.0,0.49087225]
[1729239887502,0.001656,67945.0,67944.0,0.47167295]
[1729239887934,0.001656,67945.0,67944.0,0.45967304]
[1729239888163,0.001656,67945.0,67944.0,0.47165852]
[1729239888666,0.001656,67945.0,67944.0,0.47164429]
[1729239888905,0.001656,67945.0,67944.0,0.35692015]
[1729239889172,0.001656,67945.0,67944.0,0.34591334]
[1729239892092,0.001656,67945.0,67944.0,0.34589621]
[1729239892311,0.001656,67945.0,67944.0,0.46062035]
[1729239895148,0.001656,67945.0,67944.0,0.34589621]
[1729239895380,0.001656,67945.0,67944.0,0.33981786]
[1729239896350,0.001656,67945.0,67944.0,0.04367871]
[1729239896552,0.001656,67945.0,67944.0,0.03778871]
[1729239897210,0.001656,67945.0,67944.0,0.18496871]
[1729239897645,0.148833,67945.0,67944.0,0.03778871]
[1729239897845,0.001656,67945.0,67944.0,0.03778871]
[1729239898848,0.001656,67945.0,67944.0,0.18496871]
[1729239899253,0.001656,67945.0,67944.0,0.03778871]
[1729239902777,0.001656,67945.0,67944.0,0.18496871]
[1729239907549,0.001656,67945.0,67944.0,0.19692238]
[1729239908711,0.001656,67945.0,67944.0,0.04974238]
[1729239908877,0.319833,67945.0,67944.0,0.04974238]
[1729239909091,0.319833,67945.0,67944.0,0.03778871]
[1729239909302,0.319833,67945.0,67944.0,0.028]
[1729239909750,0.319833,67945.0,67944.0,0.01036707]
[1729239910204,0.319833,67945.0,67944.0,0.028]
[1729239910412,0.319833,67945.0,67944.0,0.014]
[1729239910622,0.319833,67945.0,67941.0,0.147185]
[1729239910841,0.319833,67945.0,67944.0,0.01636707]
[1729239911075,0.319833,67945.0,67944.0,0.006]
[1729239911315,0.319833,67945.0,67944.0,0.01636707]
[1729239911523,0.319833,67945.0,67944.0,0.01199805]
[1729239911726,0.319833,67945.0,67944.0,0.02236512]
[1729239911929,0.172656,67945.0,67944.0,0.02236512]
[1729239912527,0.172656,67945.0,67944.0,0.02936512]
[1729239913189,0.319833,67945.0,67944.0,0.02936512]
[1729239913396,0.319833,67945.0,67944.0,0.04039057]
[1729239913601,0.319833,67945.0,67944.0,0.04639057]
[1729239916034,0.319833,67945.0,67944.0,0.03536512]
[1729239916524,0.319833,67945.0,67944.0,0.02499805]
[1729239919878,0.319833,67945.0,67944.0,0.013]
[1729239924583,0.43455714,67945.0,67944.0,0.013]
[1729239926483,0.58104625,67945.0,67944.0,0.013]
[1729239926736,0.72727703,67945.0,67944.0,0.013]
[1729239926979,0.81489961,67945.0,67944.0,0.013]
[1729239927228,0.70427703,67945.0,67944.0,0.013]
[1729239927736,0.60159921,67945.0,67944.0,0.013]
[1729239929234,0.61159921,67945.0,67944.0,0.013]
[1729239931139,0.9982825,67945.0,67944.0,0.013]
[1729239931346,0.15211328,67938.0,67933.0,0.21942817]
[1729239931547,0.69232678,67938.0,67933.0,0.21942817]
[1729239932008,0.69232678,67938.0,67931.0,0.000828]
[1729239932256,0.71429367,67938.0,67931.0,0.000828]
[1729239932496,0.60445921,67938.0,67931.0,0.000828]
[1729239932706,0.71429367,67938.0,67931.0,0.000828]
[1729239933451,0.71429367,67938.0,67937.0,0.007828]
[1729239933676,0.60445921,67938.0,67937.0,0.015828]
[1729239934184,0.71429367,67938.0,67937.0,0.015828]
[1729239934424,0.60445921,67938.0,67937.0,0.015828]
[1729239934667,0.69228458,67938.0,67937.0,0.015828]
[1729239935146,0.69228155,67938.0,67937.0,0.015828]
[1729239937620,0.60445921,67938.0,67937.0,0.015828]
[1729239939605,0.50819267,67938.0,67937.0,0.015828]
[1729239940095,0.44233742,67938.0,67937.0,0.015828]
[1729239940581,0.147193,67938.0,67937.0,0.015828]
[1729239941067,0.147193,67938.0,67937.0,0.02631551]
[1729239941306,0.147193,67938.0,67937.0,0.015828]
[1729239951536,0.19109568,67938.0,67937.0,0.015828]
[1729239952002,0.04390268,67938.0,67937.0,0.015828]
[1729239952208,0.147193,67938.0,67937.0,0.02783987]
[1729239952632,0.147193,67938.0,67937.0,0.03520082]
[1729239956999,0.147193,67938.0,67937.0,0.02783987]
[1729239957224,0.19114524,67938.0,67937.0,0.02783987]
[1729239957954,0.147193,67938.0,67937.0,0.02783987]
[1729239958422,0.147193,67938.0,67937.0,0.02784484]
[1729239959597,0.21312136,67938.0,67937.0,0.02784484]
[1729239960509,0.147193,67938.0,67937.0,0.02784484]
[1729239960748,0.21312136,67938.0,67937.0,0.02784484]
[1729239960958,0.21317217,67938.0,67937.0,0.02784484]
[1729239961170,0.21317217,67938.0,67937.0,0.015828]
[1729239961380,0.21317217,67938.0,67937.0,0.02784478]